bitfinex/quotes_SOLUSD_20240705
["timestamp","ask_amount","ask_price","bid_price","bid_amount"]
[1720172901135,29.91380695,126.09,126.01,100.0]
[1720172901343,29.91380695,126.09,125.98,200.0]
[1720172901543,7.9317,126.08,125.98,200.0]
[1720172901831,1.98346446,126.08,126.0,200.0]
[1720172902138,1.98346446,126.08,126.0,100.0]
[1720172902309,21.9831629,126.09,126.0,123.81]
[1720172902652,1.9831629,126.09,126.0,123.81]
[1720172902963,1.9831629,126.09,125.99,23.81]
[1720172903141,1.9831629,126.09,126.02,100.0]
[1720172903509,9.9141629,126.09,125.99,23.81]
[1720172904029,9.9141629,126.09,125.99,100.0]
[1720172904442,1.9831629,126.09,126.03,100.0]
[1720172905043,1.9831629,126.09,126.01,100.0]
[1720172905335,1.9831629,126.09,125.98,100.0]
[1720172905541,16.22598662,126.08,125.98,200.0]
[1720172905723,1.98349489,126.07,125.98,200.0]
[1720172905923,1.98349508,126.07,125.98,200.0]
[1720172906235,1.98321355,126.09,126.02,100.0]
[1720172906440,1.98321355,126.09,125.94,25.19167196]
[1720172906441,9.91431355,126.09,125.98,200.0]
[1720172906633,18.20839671,126.09,126.0,100.0]
[1720172906837,10.27729671,126.09,126.02,100.0]
[1720172907035,1.98321355,126.09,126.02,100.0]
[1720172907918,18.20836562,126.09,126.0,100.0]
[1720172908119,10.27716562,126.09,126.02,100.0]
[1720172908343,1.98321355,126.09,126.02,100.0]
[1720172908834,1.98321355,126.09,126.0,200.0]
[1720172909011,1.98321355,126.09,126.02,100.0]
[1720172909216,7.9317,126.08,125.98,100.0]
[1720172909413,1.98327657,126.07,125.98,200.0]
[1720172909653,9.91620135,126.06,125.96,200.0]
[1720172909817,7.9322,126.07,125.97,20.0]
[1720172910155,1.98350619,126.06,125.97,20.0]
[1720172910319,1.98350619,126.06,125.98,100.0]
[1720172910524,1.98349427,126.07,125.98,100.0]
[1720172910841,1.98349427,126.07,125.96,100.0]
[1720172910842,6.6298,126.04,125.96,100.0]
[1720172911144,1.98385549,126.03,125.94,100.0]
[1720172911330,1.98385549,126.03,125.95,100.0]
[1720172911652,1.98385549,126.03,125.97,100.0]
[1720172911948,6.6298,126.04,125.97,100.0]
[1720172912646,6.6298,126.04,126.0,100.0]
[1720172912849,6.6298,126.04,126.01,100.0]
[1720172913016,6.6362,126.08,126.03,100.0]
[1720172913444,6.6362,126.08,126.03,200.0]
[1720172913636,6.6362,126.08,126.03,100.0]
[1720172915628,1.98289528,126.07,125.99,200.0]
[1720172915830,6.6362,126.08,126.02,100.0]
[1720172916029,6.6362,126.08,125.99,100.0]
[1720172916424,1.98310959,126.07,125.97,100.0]
[1720172916640,9.91622844,126.06,125.97,100.0]
[1720172916830,1.98354612,126.07,125.99,123.81]
[1720172917151,1.98321498,126.06,125.97,100.0]
[1720172917442,1.98321498,126.06,125.99,100.0]
[1720172917626,9.91611498,126.06,125.99,100.0]
[1720172917831,1.98321498,126.06,125.96,100.0]
[1720172918145,1.98321498,126.06,125.97,100.0]
[1720172918323,1.98321498,126.06,125.99,100.0]
[1720172918526,1.98358403,126.05,125.99,100.0]
[1720172918836,1.98358403,126.05,125.97,100.0]
[1720172919416,1.98358403,126.05,125.99,100.0]
[1720172919622,1.98363252,126.06,125.99,100.0]
[1720172920343,1.98363252,126.06,125.97,100.0]
[1720172920538,1.98363252,126.06,125.99,100.0]
[1720172920761,1.98364414,126.06,125.98,100.0]
[1720172920954,1.98364414,126.06,125.98,200.0]
[1720172921247,1.98364414,126.06,125.99,100.0]
[1720172921626,1.98350364,126.07,125.97,100.0]
[1720172921841,1.98353854,126.06,126.0,100.0]
[1720172922764,1.98344207,126.07,126.0,100.0]
[1720172922933,1.98343056,126.06,126.0,100.0]
[1720172923833,8.61966075,126.08,126.02,100.0]
[1720172924062,6.6362,126.08,126.02,100.0]
[1720172924556,1.98317173,126.07,125.98,100.0]
[1720172924764,1.98341328,126.06,125.98,100.0]
[1720172925355,1.98341328,126.06,125.96,200.0]
[1720172925571,1.98341328,126.06,125.95,51.54647411]
[1720172925572,7.9352,126.03,125.95,51.54647411]
[1720172925863,8.02057117,126.02,125.95,51.54647411]
[1720172926054,6.0366,126.02,125.95,151.54647411]
[1720172926231,6.0366,126.02,125.95,51.54647411]
[1720172926232,1.9839939,126.01,125.95,51.54647411]
[1720172926864,9.9201939,126.01,125.95,51.54647411]
[1720172927337,15.3623,126.0,125.95,51.54647411]
[1720172927533,21.6462,125.98,125.92,0.5174907]
[1720172927728,7.9391,125.96,125.93,41.47361138]
[1720172927933,1.98528102,125.97,125.93,41.47361138]
[1720172928133,21.6462,125.98,125.93,41.47361138]
[1720172928345,21.6462,125.98,125.94,100.0]
[1720172928936,6.2839,125.98,125.94,100.0]
[1720172929159,6.2839,125.98,125.93,141.47361138]
[1720172929345,6.2839,125.98,125.96,100.0]
[1720172929565,1.9844799,126.02,125.96,100.0]
[1720172929741,21.914,126.03,125.96,100.0]
[1720172929934,21.914,126.03,125.95,100.0]
[1720172930551,21.914,126.03,125.99,100.0]
[1720172931533,1.98376875,126.02,125.96,100.0]
[1720172931766,1.98376875,126.02,125.94,100.0]
[1720172931937,21.914,126.03,125.98,100.0]
[1720172932367,21.914,126.03,125.96,100.0]
[1720172932368,1.98395955,126.02,125.96,100.0]
[1720172933361,23.89797306,126.03,125.96,100.0]
[1720172933768,23.89797306,126.03,125.94,100.0]
[1720172934081,9.91949714,126.02,125.93,41.47361138]
[1720172934243,1.98442585,126.01,125.93,41.47361138]
[1720172935036,21.98442585,126.01,125.93,41.47361138]
[1720172935235,71.6648,126.0,125.93,41.47361138]
[1720172935433,18.5736,125.95,125.94,27.58374489]
[1720172935662,18.5736,125.95,125.94,9.67104489]
[1720172935851,10.6339,125.95,125.85,40.96859271]
[1720172936057,7.9423,125.91,125.85,40.96859271]
[1720172936264,1.98594363,125.9,125.85,40.96859271]
[1720172936564,9.92874363,125.9,125.85,40.96859271]
[1720172936860,7.9428,125.9,125.85,40.96859271]
[1720172937069,1.9862755,125.93,125.85,40.96859271]
[1720172937262,1.9862755,125.93,125.87,100.0]
[1720172938283,6.0544,125.95,125.89,100.0]
[1720172938576,6.0544,125.95,125.87,140.96208305]
[1720172938940,6.0544,125.95,125.89,100.0]
[1720172939368,6.0544,125.95,125.87,140.96208305]
[1720172939676,6.0544,125.95,125.87,40.96208305]
[1720172939677,1.98512443,125.94,125.87,40.96208305]
[1720172940359,1.98541618,125.93,125.87,40.96208305]
[1720172940665,9.92631618,125.93,125.87,40.96208305]
[1720172940845,21.98583288,125.94,125.87,140.96208305]
[1720172941047,8.03974523,125.95,125.89,100.0]
[1720172941344,20.0,125.94,125.87,40.96208305]
[1720172941658,1.98548754,125.93,125.87,140.96208305]
[1720172942267,1.98548754,125.93,125.87,40.96208305]
[1720172942570,1.98548754,125.93,125.87,140.96208305]
[1720172942773,1.98551561,125.94,125.87,140.96208305]
[1720172943067,1.98559876,125.93,125.87,40.96208305]
[1720172943965,7.9425,125.91,125.87,40.96208305]
[1720172944152,7.944,125.88,125.87,40.96208305]
[1720172944351,59.71033058,125.88,125.87,11.70697912]
[1720172944568,79.88033058,125.88,125.87,8.21297912]
[1720172945365,88.1893192,125.88,125.87,8.21297912]
[1720172945565,7.9465,125.85,125.79,0.8688985]
[1720172945772,7.947,125.84,125.8,38.18013835]
[1720172946073,7.9473,125.83,125.8,38.18013835]
[1720172946266,7.9484,125.81,125.8,38.18013835]
[1720172946468,7.948,125.82,125.8,38.18013835]
[1720172946766,7.9484,125.81,125.8,38.18013835]
[1720172947266,49.78,125.82,125.8,38.18013835]
[1720172947468,7.9484,125.81,125.8,38.18013835]
[1720172947769,1.98747492,125.81,125.8,38.18013835]
[1720172948360,1.9875302,125.84,125.8,38.18013835]
[1720172948562,1.98690749,125.86,125.8,38.18013835]
[1720172948874,8.30898862,125.88,125.81,100.0]
[1720172949071,1.98653056,125.92,125.82,38.17406934]
[1720172949283,10.29301838,125.92,125.82,38.17406934]
[1720172949451,10.29301838,125.92,125.86,100.0]
[1720172949652,1.98653056,125.92,125.84,138.16800226]
[1720172949853,9.92441174,125.96,125.85,238.16496944]
[1720172950054,58.16831976,125.97,125.85,38.16496944]
[1720172950055,1.98544274,125.95,125.85,38.16496944]
[1720172950272,7.9365,126.0,125.87,100.0]
[1720172950581,1.98467502,126.02,125.94,100.0]
[1720172951073,1.98422814,126.02,125.96,100.0]
[1720172951251,9.91799948,126.04,125.93,100.0]
[1720172951455,7.9349,126.03,125.91,100.0]
[1720172951665,1.98415665,126.03,125.96,100.0]
[1720172951882,9.91739146,126.05,125.96,100.0]
[1720172952186,1.98399146,126.04,125.94,100.0]
[1720172952390,1.98399146,126.04,125.92,200.0]
[1720172952686,9.91849146,126.04,125.92,200.0]
[1720172952882,7.9346,126.03,125.92,200.0]
[1720172953068,1.98417079,126.02,125.92,100.0]
[1720172953271,1.98441111,126.01,125.92,100.0]
[1720172953585,1.98441111,126.01,125.91,100.0]
[1720172953779,9.92031111,126.01,125.91,100.0]
[1720172953963,1.98447033,126.0,125.9,106.15]
[1720172954164,1.98447033,126.0,125.86,100.0]
[1720172954369,7.9384,125.97,125.86,38.16193711]
[1720172954571,1.98505321,125.99,125.9,200.0]
[1720172954775,1.98505321,126.0,125.92,100.0]
[1720172954980,58.07752813,126.06,125.86,38.16193711]
[1720172954981,20.0,126.05,125.94,100.0]
[1720172955267,1.9839077,126.04,125.94,200.0]
[1720172955669,1.9839077,126.04,125.92,100.0]
[1720172955870,1.9839077,126.04,125.89,100.0]
[1720172956190,1.9839077,126.04,125.86,38.16193711]
[1720172956191,7.9402,125.94,125.86,38.16193711]
[1720172956389,1.98539612,125.93,125.86,38.16193711]
[1720172956594,7.9407,125.94,125.86,38.16193711]
[1720172956772,1.98553801,125.93,125.86,38.16193711]
[1720172957292,1.98543871,125.94,125.86,38.16193711]
[1720172958381,49.78,125.98,125.88,200.0]
[1720172958581,19.8528,125.93,125.86,38.16193711]
[1720172958780,1.98633698,125.92,125.86,38.16193711]
[1720172958982,29.92793698,125.92,125.86,38.16193711]
[1720172959288,7.9447,125.87,125.86,38.16193711]
[1720172959486,71.76633698,125.92,125.86,38.16193711]
[1720172959878,79.70823698,125.92,125.86,38.16193711]
[1720172960197,69.78,125.92,125.86,38.16193711]
[1720172960397,77.7217,125.92,125.86,38.16193711]
[1720172960563,7.9423,125.91,125.86,38.16193711]
[1720172960764,27.9417,125.92,125.86,38.16193711]
[1720172960968,20.0,125.92,125.86,38.16193711]
[1720172961184,7.9434,125.9,125.86,38.16193711]
[1720172961475,7.9447,125.87,125.86,38.16193711]
[1720172962490,27.9447,125.87,125.86,38.16193711]
[1720172962875,36.25392428,125.87,125.86,38.16193711]
[1720172963086,28.47922428,125.87,125.79,0.8688985]
[1720172963400,57.726,125.85,125.8,43.79385696]
[1720172963589,29.93379463,125.84,125.8,43.79385696]
[1720172963770,21.98709463,125.84,125.8,43.79385696]
[1720172964082,7.9473,125.83,125.8,43.79385696]
[1720172964286,1.98719773,125.82,125.8,43.79385696]
[1720172964499,21.98719763,125.84,125.8,43.79385696]
[1720172966182,29.93399763,125.84,125.8,43.79385696]
[1720172966382,7.9472,125.83,125.8,43.79385696]
[1720172966580,29.93533081,125.82,125.8,43.79385696]
[1720172966783,1.98736245,125.81,125.8,43.79385696]
[1720172967080,9.93576245,125.81,125.8,43.79385696]
[1720172967274,20.0,125.81,125.8,43.79385696]
[1720172967603,21.98736615,125.81,125.8,43.79385696]
[1720172967776,20.0,125.81,125.8,43.79385696]
[1720172968408,59.71382534,125.85,125.8,43.79385696]
[1720172968594,21.98688475,125.84,125.8,43.79385696]
[1720172968902,10.29610945,125.87,125.79,0.8688985]
[1720172969285,7.9465,125.85,125.79,0.8688985]
[1720172969475,19.67949674,125.87,125.79,0.8688985]
[1720172969476,25.63741157,125.87,125.79,0.8688985]
[1720172969789,1.98670425,125.86,125.79,0.8688985]
[1720172969971,7.9464,125.85,125.79,0.8688985]
[1720172970183,1.98693217,125.84,125.79,0.8688985]
[1720172971082,1.98701225,125.86,125.79,0.8688985]
[1720172971284,21.98701225,125.86,125.79,100.8688985]
[1720172971675,20.0,125.86,125.81,100.0]
[1720172971876,9.93248402,125.85,125.79,0.8688985]
[1720172972183,9.9336085,125.84,125.79,0.8688985]
[1720172973019,20.0,125.83,125.79,0.8688985]
[1720172973180,7.9491,125.8,125.79,0.8688985]
[1720172973378,1.98768735,125.82,125.79,0.8688985]
[1720172973672,20.0,125.82,125.79,0.8688985]
[1720172973894,8.3125249,125.83,125.79,0.8688985]
[1720172974099,1.98683752,125.85,125.79,0.8688985]
[1720172974317,1.98681406,125.86,125.8,100.0]
[1720172974520,10.29693429,125.87,125.8,100.0]
[1720172974726,1.98681406,125.87,125.8,100.0]
[1720172975231,11.36988066,125.88,125.82,100.0]
[1720172975398,9.38338729,125.88,125.81,100.0]
[1720172975713,1.9863148,125.87,125.82,100.0]
[1720172976100,1.9863148,125.87,125.79,16.0442985]
[1720172976297,7.9464,125.85,125.79,0.8688985]
[1720172976525,1.98701861,125.84,125.79,0.8688985]
[1720172976817,9.38338729,125.86,125.79,100.8688985]
[1720172977006,21.98652122,125.85,125.79,0.8688985]
[1720172977695,21.98679765,125.85,125.79,0.8688985]
[1720172977896,1.98674815,125.84,125.79,0.8688985]
[1720172980005,21.98687225,125.85,125.79,100.8688985]
[1720172980202,9.9333859,125.84,125.79,0.8688985]
[1720172980526,20.0,125.83,125.79,0.8688985]
[1720172981324,21.98707292,125.83,125.79,0.8688985]
[1720172983336,1.98704595,125.83,125.79,0.8688985]
[1720172983635,20.0,125.84,125.79,0.8688985]
[1720172983807,21.98677682,125.85,125.8,100.0]
[1720172984008,1.98677682,125.86,125.8,100.0]
[1720172984208,1.98677682,125.86,125.79,0.8688985]
[1720172984209,7.9476,125.83,125.79,0.8688985]
[1720172984432,1.98724714,125.82,125.79,0.8688985]
[1720172985731,1.98727811,125.81,125.79,0.8688985]
[1720172985938,7.9491,125.8,125.79,0.8688985]
[1720172986141,20.0,125.8,125.79,0.8688985]
[1720172986443,29.9366899,125.8,125.79,0.8688985]
[1720172987534,30.1066899,125.8,125.79,0.8688985]
[1720172988540,7.9504,125.78,125.69,15.4438]
[1720172988729,21.98805115,125.77,125.69,115.4438]
[1720172989048,1.98805313,125.76,125.69,15.4438]
[1720172989231,1.98805313,125.76,125.69,115.4438]
[1720172989437,1.98805313,125.76,125.67,106.6158]
[1720172989616,1.98805313,125.76,125.7,100.0]
[1720172989816,20.0,125.77,125.72,100.0]
[1720172990118,1.9877412,125.81,125.75,100.0]
[1720172990437,1.9873043,125.83,125.75,100.0]
[1720172990747,9.9345043,125.83,125.75,100.0]
[1720172991045,1.9873043,125.83,125.75,100.0]
[1720172991342,1.98732249,125.82,125.72,16.1948]
[1720172991547,7.9492,125.8,125.72,16.1948]
[1720172991719,1.98770163,125.79,125.72,16.1948]
[1720172992120,21.98764529,125.8,125.72,16.1948]
[1720172996148,9.93607017,125.81,125.74,0.84626493]
[1720172996342,9.93607017,125.81,125.72,16.1948]
[1720172996343,20.0,125.8,125.72,16.1948]
[1720172996550,20.0,125.8,125.73,100.0]
[1720172996856,1.98757612,125.79,125.72,16.1948]
[1720172997025,9.93787612,125.79,125.71,223.81]
[1720172997353,20.0,125.8,125.73,100.0]
[1720172997548,20.0,125.8,125.75,100.0]
[1720172997731,27.77768043,125.84,125.72,100.0]
[1720172998052,7.9483,125.82,125.72,100.0]
[1720172998349,21.98751018,125.81,125.74,100.0]
[1720172998859,1.98751156,125.83,125.76,100.0]
[1720172999141,7.9478,125.82,125.73,123.81]
[1720172999347,9.93587766,125.81,125.71,200.17]
[1720172999653,7.9485,125.81,125.73,100.0]
[1720173000324,7.9496,125.8,125.71,223.81]
[1720173000526,1.98771085,125.79,125.71,223.81]
[1720173001365,1.98771085,125.79,125.73,100.0]
[1720173001366,20.0,125.79,125.73,100.0]
[1720173002157,1.98752713,125.83,125.76,100.0]
[1720173002340,7.77728111,125.84,125.76,100.0]
[1720173002647,7.77728111,125.84,125.77,1.5877029]
[1720173002850,7.77728111,125.84,125.76,100.0]
[1720173003057,7.77728111,125.84,125.74,100.0]
[1720173003251,0.471,125.77,125.74,100.0]
[1720173003428,0.471,125.77,125.71,200.0]
[1720173004326,0.471,125.77,125.69,100.0]
[1720173004731,0.471,125.77,125.67,106.6158]
[1720173004732,10.41018108,125.77,125.67,106.6158]
[1720173004949,20.0,125.76,125.67,106.6158]
[1720173005152,21.98829496,125.76,125.7,100.0]
[1720173005360,20.0,125.76,125.7,100.0]
[1720173005575,2.45906972,125.77,125.68,100.0]
[1720173005770,1.98827817,125.76,125.68,100.0]
[1720173005933,9.94007817,125.76,125.67,6.6158]
[1720173006133,27.9523,125.75,125.66,200.8688985]
[1720173006459,27.9523,125.75,125.66,0.8688985]
[1720173006460,1.9886848,125.74,125.66,0.8688985]
[1720173006665,1.98875088,125.73,125.66,0.8688985]
[1720173006958,1.98875088,125.73,125.66,100.8688985]
[1720173007135,1.98854715,125.74,125.68,100.0]
[1720173007330,1.98836959,125.74,125.66,100.8688985]
[1720173007634,1.9884933,125.73,125.66,100.8688985]
[1720173007835,20.0,125.74,125.68,100.0]
[1720173008032,1.98865198,125.75,125.66,200.8688985]
[1720173008338,1.98865198,125.75,125.66,100.8688985]
[1720173008339,9.94095198,125.75,125.66,100.8688985]
[1720173008674,20.0,125.74,125.68,100.0]
[1720173009053,21.98865198,125.75,125.68,100.0]
[1720173009447,27.77892918,125.75,125.68,100.0]
[1720173009643,27.77892918,125.75,125.66,24.6788985]
[1720173009644,20.0,125.75,125.66,24.6788985]
[1720173009846,0.471,125.77,125.72,100.0]
[1720173010044,0.471,125.77,125.74,100.0]
[1720173010253,0.471,125.77,125.76,100.0]
[1720173010651,0.471,125.77,125.76,200.17]
[1720173011054,0.471,125.77,125.74,223.81]
[1720173011247,0.471,125.77,125.74,100.0]
[1720173011448,0.471,125.77,125.75,0.17]
[1720173012240,0.471,125.77,125.74,100.0]
[1720173013368,0.471,125.77,125.76,100.0]
[1720173014259,0.471,125.77,125.74,100.0]
[1720173015284,0.471,125.77,125.72,106.0959]
[1720173015606,0.471,125.77,125.74,100.0]
[1720173015763,0.471,125.77,125.76,100.0]
[1720173016068,0.471,125.77,125.74,100.0]
[1720173016573,0.471,125.77,125.71,100.0]
[1720173017675,0.471,125.77,125.73,100.0]
[1720173017880,0.471,125.77,125.69,100.0]
[1720173019068,0.471,125.77,125.71,100.0]
[1720173019262,0.471,125.77,125.73,100.0]
[1720173019787,0.471,125.77,125.71,100.0]
[1720173020571,20.471,125.77,125.69,100.0]
[1720173020774,0.471,125.77,125.71,100.0]
[1720173020975,0.471,125.77,125.69,100.0]
[1720173021175,14.2123772,125.77,125.69,100.0]
[1720173021404,21.98831804,125.76,125.66,0.8688985]
[1720173021570,7.953,125.74,125.66,0.8688985]
[1720173021770,21.98876752,125.73,125.66,0.8688985]
[1720173022170,21.98876752,125.73,125.64,100.0]
[1720173022386,21.98876752,125.73,125.63,100.0]
[1720173022586,25.7902772,125.72,125.63,100.0]
[1720173022786,1.98927219,125.71,125.65,100.0]
[1720173022973,21.98927219,125.71,125.65,100.0]
[1720173023165,1.98905445,125.7,125.65,100.0]
[1720173024287,1.98905445,125.7,125.61,223.81]
[1720173024486,7.9567,125.68,125.6,100.0]
[1720173024694,21.98980823,125.67,125.61,100.0]
[1720173025269,9.94720823,125.67,125.57,223.81]
[1720173025577,20.0,125.66,125.59,100.0]
[1720173025786,1.98989086,125.65,125.59,100.0]
[1720173026400,20.0,125.68,125.63,100.0]
[1720173026574,21.98942565,125.7,125.65,100.0]
[1720173026776,21.98910909,125.71,125.65,100.0]
[1720173026986,20.0,125.7,125.65,100.0]
[1720173027183,21.98905059,125.72,125.65,100.0]
[1720173027499,7.956,125.7,125.64,100.0]
[1720173027680,20.0,125.69,125.66,100.0]
[1720173027876,7.77927733,125.71,125.66,100.0]
[1720173029397,1.98896979,125.74,125.66,100.0]
[1720173029593,1.98881251,125.73,125.66,100.0]
[1720173029800,21.98881251,125.73,125.66,100.0]
[1720173030098,21.98881251,125.73,125.68,100.0]
[1720173030285,1.98881251,125.73,125.68,100.0]
[1720173030477,2.45959161,125.77,125.71,100.0]
[1720173030976,2.45959161,125.77,125.69,0.17]
[1720173030977,1.9880492,125.76,125.69,0.17]
[1720173031391,2.45934207,125.77,125.7,100.0]
[1720173031901,2.45934207,125.77,125.69,100.0]
[1720173032102,1.98825875,125.76,125.63,100.0]
[1720173032400,41.02,125.75,125.66,100.0]
[1720173032605,1.98889095,125.74,125.65,100.0]
[1720173032802,1.98863973,125.73,125.65,100.0]
[1720173033291,21.98863973,125.73,125.66,100.0]
[1720173033804,21.98865752,125.74,125.66,100.0]
[1720173034097,21.98865752,125.74,125.65,100.17]
[1720173034098,1.98865756,125.73,125.65,0.17]
[1720173034279,9.94265756,125.73,125.65,0.17]
[1720173034483,20.0,125.72,125.65,0.17]
[1720173034683,21.98884974,125.72,125.66,100.0]
[1720173034882,21.98884974,125.72,125.63,223.81]
[1720173035078,7.9548,125.71,125.63,200.0]
[1720173035300,21.98895844,125.7,125.63,200.0]
[1720173035616,21.98895844,125.7,125.63,100.0]
[1720173035903,21.98895844,125.7,125.6,115.3878]
[1720173036208,27.9553,125.71,125.62,100.0]
[1720173036388,1.98924285,125.7,125.6,239.1978]
[1720173036790,9.94484285,125.7,125.6,239.1978]
[1720173036995,7.9578,125.67,125.58,100.0]
[1720173037215,20.0,125.66,125.6,100.0]
[1720173037680,1.98972847,125.65,125.57,100.0]
[1720173038005,1.98972847,125.65,125.58,100.0]
[1720173038305,1.98990915,125.66,125.6,100.0]
[1720173039007,20.0,125.67,125.6,100.0]
[1720173039008,21.98968826,125.67,125.6,100.0]
[1720173040281,21.98968826,125.67,125.62,100.0]
[1720173040819,20.0,125.67,125.62,100.0]
[1720173040988,21.9894667,125.68,125.62,100.0]
[1720173041189,1.9894667,125.68,125.62,100.0]
[1720173041506,7.9556,125.7,125.62,100.0]
[1720173041706,1.98946709,125.68,125.59,0.17]
[1720173042086,66.81946709,125.68,125.53,106.6546]
[1720173042304,7.9607,125.62,125.53,6.6546]
[1720173042512,1.99065596,125.61,125.53,6.6546]
[1720173042714,9.9503481,125.64,125.57,100.0]
[1720173043015,20.0,125.63,125.57,100.0]
[1720173043311,1.99044239,125.62,125.57,100.0]
[1720173044015,1.99044239,125.62,125.56,100.0]
[1720173044195,1.99038243,125.65,125.6,100.0]
[1720173044515,6.22752832,125.69,125.6,200.0]
[1720173044689,1.98951942,125.68,125.61,0.17]
[1720173044883,1.98951942,125.68,125.61,30.17]
[1720173045212,9.94641942,125.68,125.61,30.0]
[1720173045385,1.98951942,125.68,125.61,130.0]
[1720173045582,1.98964266,125.67,125.61,130.0]
[1720173046688,1.98964442,125.68,125.61,130.0]
[1720173047213,21.98964442,125.68,125.62,0.17]
[1720173047411,21.98964442,125.68,125.62,30.0]
[1720173047617,7.9585,125.66,125.62,30.0]
[1720173047828,21.99009195,125.65,125.56,100.0]
[1720173047986,29.94899195,125.65,125.55,100.0]
[1720173048190,21.99009195,125.65,125.55,100.0]
[1720173048413,9.94909195,125.65,125.57,130.0]
[1720173048596,20.0,125.64,125.57,30.0]
[1720173048796,1.99023884,125.63,125.57,30.0]
[1720173048993,1.99023884,125.63,125.55,100.0]
[1720173049718,7.9593,125.64,125.56,0.17]
[1720173049919,21.99034022,125.63,125.56,0.17]
[1720173050087,1.99034022,125.62,125.56,0.17]
[1720173050294,2.16033824,125.66,125.56,0.17]
[1720173050821,7.9593,125.64,125.56,0.17]
[1720173051015,21.99033818,125.63,125.56,0.17]
[1720173051310,1.99041338,125.62,125.56,0.17]
[1720173051917,9.95141338,125.62,125.54,0.8688985]
[1720173052106,20.0,125.61,125.54,0.8688985]
[1720173052299,1.99073599,125.6,125.54,0.8688985]
[1720173052813,1.99074321,125.61,125.55,100.0]
[1720173053111,21.99046134,125.64,125.55,100.0]
[1720173053417,29.94976134,125.64,125.56,0.17]
[1720173053613,21.99046134,125.64,125.56,0.17]
[1720173053920,29.94966134,125.64,125.56,0.17]
[1720173054118,21.99046134,125.64,125.56,0.17]
[1720173054418,21.99046134,125.64,125.57,100.0]
[1720173055117,21.99046134,125.64,125.56,0.17]
[1720173056617,29.94966134,125.64,125.55,100.0]
[1720173056996,29.94966134,125.64,125.54,1.0388985]
[1720173057328,8.1299,125.63,125.54,0.8688985]
[1720173057618,63.01078353,125.62,125.54,0.8688985]
[1720173057830,8.1312,125.61,125.54,0.8688985]
[1720173058137,20.0,125.6,125.55,100.0]
[1720173058624,21.99052885,125.63,125.55,100.0]
[1720173058824,1.99053169,125.62,125.55,100.0]
[1720173059320,50.96709794,125.68,125.59,100.0]
[1720173059498,43.01019794,125.68,125.59,100.0]
[1720173059705,8.27978395,125.67,125.59,100.0]
[1720173060016,1.98994354,125.66,125.59,100.0]
[1720173060220,1.99005305,125.65,125.57,100.0]
[1720173060410,1.99005305,125.65,125.56,0.17]
[1720173060411,1.99005305,125.65,125.59,100.0]
[1720173060610,1.99005305,125.65,125.57,100.0]
[1720173060823,1.99005305,125.65,125.58,0.17]
[1720173060999,1.99005305,125.65,125.59,100.0]
[1720173061329,1.99000951,125.66,125.59,100.0]
[1720173061508,8.27978395,125.67,125.61,100.0]
[1720173061724,1.98930703,125.73,125.63,100.0]
[1720173062021,43.00930703,125.73,125.67,100.0]
[1720173062224,8.27808254,125.72,125.67,100.0]
[1720173062431,1.9891193,125.75,125.69,100.0]
[1720173062810,0.471,125.77,125.71,100.0]
[1720173063516,8.4223,125.77,125.71,100.0]
[1720173063721,1.98817954,125.76,125.71,100.0]
[1720173063924,0.471,125.77,125.74,100.0]
[1720173066326,0.471,125.77,125.73,100.0]
[1720173066833,0.471,125.77,125.75,100.0]
[1720173067512,0.471,125.77,125.73,100.0]
[1720173067907,0.471,125.77,125.74,0.17]
[1720173068912,0.471,125.77,125.67,100.0]
[1720173069225,0.471,125.77,125.71,100.0]